[Event "SVK-ch Open 2018"]
[Site "Banska Stiavnica"]
[Date "2018.07.10"]
[Round "4"]
[White "Bednar, Jan"]
[Black "Babinsky, Michal"]
[Result "1-0"]
[ECO "A46"]
[WhiteElo "2010"]
[BlackElo "1762"]
[Annotator "NA"]
[PlyCount "71"]
[EventDate "2018.07.07"]
[EventType "swiss"]
[EventCountry "SVK"]
[SourceTitle "playchess.com"]
[Source "ChessBase"]
[SourceQuality "1"]
[TimeControl "40/5400+30:1800+30"]

1. d4 {[%emt 0:00:00]} Nf6 {[%emt 0:00:00]} 2. Nf3 {[%emt 0:00:00]} d6 {[%emt 0:00:00]} 3. c4 {[%emt 0:00:00]} g6 {[%emt 0:00:29]} 4. Nc3 {[%emt 0:00:00]} Bg7 {[%emt 0:00:06]} 5. e4 {[%emt 0:00:54]} Nbd7 {[%emt 0:01:04]} 6. Be2 {[%emt 0:00:40]} O-O {[%emt 0:00:33]} 7. O-O {[%emt 0:00:04]} e5 {[%emt 0:02:19]} 8. Bg5 {[%emt 0:05:47]} c6 {[%emt 0:06:28]} 9. d5 {[%emt 0:00:35]} Qc7 {[%emt 0:00:40]} 10. Nd2 {[%emt 0:02:39]} cxd5 {[%emt 0:02:50]} 11. cxd5 {[%emt 0:00:21]} a6 {[%emt 0:00:19]} 12. Rc1 {[%emt 0:00:10]} Qb8 {[%emt 0:01:52]} 13. a4 {[%emt 0:09:37]} b6 {[%emt 0:05:09]} 14. b4 {[%emt 0:10:57]} a5 {[%emt 0:07:02]} 15. bxa5 {[%emt 0:03:46]} Rxa5 {[%emt 0:04:05]} 16. Nc4 {[%emt 0:11:49]} Ra8 {[%emt 0:03:30]} 17. Rb1 {[%emt 0:04:09]} Ba6 {[%emt 0:01:53]} 18. Na3 {[%emt 0:03:30]} Nc5 {[%emt 0:01:49]} 19. Bxa6 {[%emt 0:02:08]} Rxa6 {[%emt 0:00:48]} 20. Qe2 {[%emt 0:00:49]} Nfd7 {[%emt 0:05:00]} 21. Nc4 {[%emt 0:09:29]} f6 {[%emt 0:07:23]} 22. Be3 {[%emt 0:00:47]} Rc8 {[%emt 0:05:40]} 23. a5 {[%emt 0:06:17]} Bf8 {[%emt 0:08:14]} 24. Bxc5 {[%emt 0:05:55]} Nxc5 {[%emt 0:08:15]} 25. Nxb6 {[%emt 0:08:09]} Rc7 {[%emt 0:00:26]} 26. Nc4 {[%emt 0:04:52]} Rb7 {[%emt 0:01:05]} 27. Rxb7 {[%emt 0:00:25]} Qxb7 {[%emt 0:00:23]} 28. Rb1 {[%emt 0:00:12]} Qd7 {[%emt 0:01:57]} 29. Nb5 {[%emt 0:04:41]} Qd8 {[%emt 0:03:00]} 30. Nc3 {[%emt 0:01:23]} Qc7 {[%emt 0:01:02]} 31. h3 {[%emt 0:00:10]} Ra7 {[%emt 0:02:06]} 32. Kh2 {[%emt 0:01:28]} Rb7 {[%emt 0:01:15]} 33. Rb6 {[%emt 0:01:03]} Rxb6 {[%emt 0:03:53]} 34. axb6 {[%emt 0:00:06]} Qb8 {[%emt 0:00:41]} 35. Qa2 {[%emt 0:00:19]} Be7 {[%emt 0:00:37]} 36. Qa7 {[%emt 0:00:13]} 1-0

[Event "SVK-ch Open 2018"]
[Site "Banska Stiavnica"]
[Date "2018.07.10"]
[Round "4"]
[White "Bakalar, Jan"]
[Black "Paksi, Gyula"]
[Result "1-0"]
[ECO "D02"]
[WhiteElo "1998"]
[BlackElo "1811"]
[Annotator "NA"]
[PlyCount "71"]
[EventDate "2018.07.07"]
[EventType "swiss"]
[EventCountry "SVK"]
[SourceTitle "playchess.com"]
[Source "ChessBase"]
[SourceQuality "1"]
[TimeControl "40/5400+30:1800+30"]

1. d4 {[%emt 0:00:00]} d5 {[%emt 0:00:00]} 2. Nf3 {[%emt 0:00:00]} Nf6 {[%emt 0:00:00]} 3. g3 {[%emt 0:00:02]} c6 {[%emt 0:00:07]} 4. Bg2 {[%emt 0:00:07]} Nbd7 {[%emt 0:00:24]} 5. O-O {[%emt 0:00:43]} e6 {[%emt 0:00:12]} 6. b3 {[%emt 0:01:31]} Be7 {[%emt 0:00:22]} 7. Nbd2 {[%emt 0:01:53]} b6 {[%emt 0:00:42]} 8. c4 {[%emt 0:02:34]} Bb7 {[%emt 0:00:27]} 9. Bb2 {[%emt 0:01:16]} dxc4 {[%emt 0:02:02]} 10. Nxc4 {[%emt 0:05:43]} c5 {[%emt 0:00:45]} 11. e3 {[%emt 0:01:02]} Rc8 {[%emt 0:03:45]} 12. Rc1 {[%emt 0:03:29]} O-O {[%emt 0:01:01]} 13. Nfe5 {[%emt 0:01:45]} Bxg2 {[%emt 0:02:02]} 14. Kxg2 {[%emt 0:00:54]} cxd4 {[%emt 0:01:55]} 15. Bxd4 {[%emt 0:03:52]} Bc5 {[%emt 0:07:12]} 16. Nxd7 {[%emt 0:05:51]} Nxd7 {[%emt 0:02:12]} 17. Bb2 {[%emt 0:04:40]} Qe7 {[%emt 0:02:13]} 18. Qf3 {[%emt 0:01:49]} Rfd8 {[%emt 0:03:31]} 19. Rfd1 {[%emt 0:01:54]} Nf8 {[%emt 0:02:35]} 20. h4 {[%emt 0:03:32]} Rxd1 {[%emt 0:01:41]} 21. Rxd1 {[%emt 0:00:14]} Rd8 {[%emt 0:01:01]} 22. Rxd8 {[%emt 0:02:23]} Qxd8 {[%emt 0:01:05]} 23. Qg4 {[%emt 0:00:38]} f6 {[%emt 0:02:55]} 24. Qe2 {[%emt 0:04:08]} Qd7 {[%emt 0:01:43]} 25. Nd2 {[%emt 0:01:17]} e5 {[%emt 0:02:04]} 26. Ne4 {[%emt 0:04:28]} Be7 {[%emt 0:05:05]} 27. f3 {[%emt 0:03:12]} Qd5 {[%emt 0:04:27]} 28. Nc3 {[%emt 0:02:43]} Qd7 {[%emt 0:02:20]} 29. Qc4+ {[%emt 0:03:26]} Qe6 {[%emt 0:03:27]} 30. Nd5 {[%emt 0:00:19]} Bd6 {[%emt 0:02:43]} 31. e4 {[%emt 0:00:34]} g6 {[%emt 0:02:15]} 32. Nxf6+ {[%emt 0:00:37]} Kf7 {[%emt 0:01:27]} 33. Nd5 {[%emt 0:01:25]} Nd7 {[%emt 0:03:50]} 34. Qa6 {[%emt 0:01:27]} Bb8 {[%emt 0:01:51]} 35. Qb7 {[%emt 0:01:54]} Kg8 {[%emt 0:04:16]} 36. Qxd7 {[%emt 0:00:22]} 1-0

[Event "SVK-ch Open 2018"]
[Site "Banska Stiavnica"]
[Date "2018.07.10"]
[Round "4"]
[White "Chrenko, Kristian"]
[Black "Juhaniak, Lubomir"]
[Result "1-0"]
[ECO "C10"]
[WhiteElo "1992"]
[BlackElo "1732"]
[Annotator "NA"]
[PlyCount "99"]
[EventDate "2018.07.07"]
[EventType "swiss"]
[EventCountry "SVK"]
[SourceTitle "playchess.com"]
[Source "ChessBase"]
[SourceQuality "1"]
[TimeControl "40/5400+30:1800+30"]

1. e4 {[%emt 0:00:00]} e6 {[%emt 0:00:08]} 2. d4 {[%emt 0:00:00]} d5 {[%emt 0:00:21]} 3. Nd2 {[%emt 0:00:02]} dxe4 {[%emt 0:00:32]} 4. Nxe4 {[%emt 0:00:02]} Nd7 {[%emt 0:00:42]} 5. Nf3 {[%emt 0:00:07]} Ngf6 {[%emt 0:01:04]} 6. Nxf6+ {[%emt 0:00:11]} Nxf6 {[%emt 0:00:32]} 7. Bd3 {[%emt 0:00:10]} c5 {[%emt 0:01:14]} 8. dxc5 {[%emt 0:00:27]} Bxc5 {[%emt 0:00:38]} 9. O-O {[%emt 0:00:03]} h6 {[%emt 0:06:52]} 10. Qe2 {[%emt 0:01:50]} a6 {[%emt 0:05:22]} 11. c4 {[%emt 0:06:26]} O-O {[%emt 0:04:46]} 12. Bd2 {[%emt 0:08:06]} Qb6 {[%emt 0:03:32]} 13. b4 {[%emt 0:02:02]} Be7 {[%emt 0:01:27]} 14. c5 {[%emt 0:03:33]} Qc7 {[%emt 0:01:15]} 15. Bc3 {[%emt 0:05:39]} Nd5 {[%emt 0:09:02]} 16. Be5 {[%emt 0:04:13]} Qd8 {[%emt 0:01:11]} 17. Rad1 {[%emt 0:02:53]} Bd7 {[%emt 0:03:23]} 18. Qe4 {[%emt 0:15:05]} f5 {[%emt 0:03:38]} 19. Qd4 {[%emt 0:02:05]} Bf6 {[%emt 0:03:20]} 20. Rfe1 {[%emt 0:06:19]} Re8 {[%emt 0:06:21]} 21. Bxf5 {[%emt 0:04:52]} exf5 {[%emt 0:09:04]} 22. Qxd5+ {[%emt 0:00:10]} Be6 {[%emt 0:00:55]} 23. Qxd8 {[%emt 0:01:54]} Raxd8 {[%emt 0:04:25]} 24. Bxf6 {[%emt 0:00:54]} Rxd1 {[%emt 0:00:19]} 25. Rxd1 {[%emt 0:00:07]} gxf6 {[%emt 0:00:06]} 26. Re1 {[%emt 0:00:28]} Kf7 {[%emt 0:01:02]} 27. Nd4 {[%emt 0:00:44]} Bxa2 {[%emt 0:01:19]} 28. Rxe8 {[%emt 0:00:26]} Kxe8 {[%emt 0:00:08]} 29. Nxf5 {[%emt 0:00:06]} Kd7 {[%emt 0:01:35]} 30. Nd4 {[%emt 0:01:56]} Bc4 {[%emt 0:03:14]} 31. f4 {[%emt 0:01:26]} Kc7 {[%emt 0:02:42]} 32. Kf2 {[%emt 0:00:44]} b6 {[%emt 0:00:43]} 33. cxb6+ {[%emt 0:02:24]} Kxb6 {[%emt 0:00:28]} 34. Ke3 {[%emt 0:00:37]} Bf1 {[%emt 0:04:11]} 35. g4 {[%emt 0:01:30]} Bh3 {[%emt 0:00:29]} 36. Kf3 {[%emt 0:00:39]} Bf1 {[%emt 0:03:54]} 37. Ke4 {[%emt 0:02:05]} Bb5 {[%emt 0:02:40]} 38. Kf5 {[%emt 0:04:38]} Bd7+ {[%emt 0:00:29]} 39. Kxf6 {[%emt 0:03:23]} Bxg4 {[%emt 0:00:14]} 40. Ke5 {[%emt 0:02:45]} Kc7 {[%emt 0:02:05]} 41. f5 {[%emt 0:30:24]} Kd7 {[%emt 0:32:13]} 42. f6 {[%emt 0:00:34]} Bh5 {[%emt 0:00:47]} 43. Nf5 {[%emt 0:00:22]} Kc6 {[%emt 0:02:22]} 44. Kd4 {[%emt 0:00:38]} Kd7 {[%emt 0:01:13]} 45. Nxh6 {[%emt 0:00:05]} Ke6 {[%emt 0:01:02]} 46. f7 {[%emt 0:00:11]} Ke7 {[%emt 0:00:42]} 47. Kc5 {[%emt 0:08:00]} Be2 {[%emt 0:02:10]} 48. Kb6 {[%emt 0:01:01]} Bd3 {[%emt 0:00:32]} 49. Ng4 {[%emt 0:00:08]} Be2 {[%emt 0:02:45]} 50. Ne5 {[%emt 0:00:08]} 1-0

[Event "SVK-ch Open 2018"]
[Site "Banska Stiavnica"]
[Date "2018.07.10"]
[Round "4"]
[White "Gyerpal, Adrian"]
[Black "Chmiel, Marcin"]
[Result "0-1"]
[ECO "E06"]
[WhiteElo "1990"]
[BlackElo "2249"]
[Annotator "NA"]
[PlyCount "134"]
[EventDate "2018.07.07"]
[EventType "swiss"]
[EventCountry "SVK"]
[SourceTitle "playchess.com"]
[Source "ChessBase"]
[SourceQuality "1"]
[TimeControl "40/5400+30:1800+30"]

1. d4 {[%emt 0:00:00]} d5 {[%emt 0:00:11]} 2. c4 {[%emt 0:00:02]} e6 {[%emt 0:00:13]} 3. Nf3 {[%emt 0:00:17]} Nf6 {[%emt 0:00:12]} 4. g3 {[%emt 0:00:28]} Be7 {[%emt 0:00:08]} 5. Bg2 {[%emt 0:00:31]} O-O {[%emt 0:00:09]} 6. O-O {[%emt 0:00:18]} c6 {[%emt 0:00:19]} 7. Qc2 {[%emt 0:04:04]} b6 {[%emt 0:00:30]} 8. Nbd2 {[%emt 0:00:30]} Bb7 {[%emt 0:00:39]} 9. Re1 {[%emt 0:05:32]} Na6 {[%emt 0:02:52]} 10. e4 {[%emt 0:04:26]} dxe4 {[%emt 0:03:14]} 11. Nxe4 {[%emt 0:00:32]} c5 {[%emt 0:00:42]} 12. Nxf6+ {[%emt 0:14:58]} Bxf6 {[%emt 0:00:09]} 13. Ng5 {[%emt 0:00:38]} Bxg5 {[%emt 0:02:13]} 14. Bxg5 {[%emt 0:02:11]} Qc8 {[%emt 0:08:12]} 15. Bxb7 {[%emt 0:07:45]} Qxb7 {[%emt 0:00:12]} 16. Qe4 {[%emt 0:00:50]} Qxe4 {[%emt 0:02:01]} 17. Rxe4 {[%emt 0:00:08]} f6 {[%emt 0:10:45]} 18. Be3 {[%emt 0:04:00]} Kf7 {[%emt 0:01:00]} 19. dxc5 {[%emt 0:03:12]} Nxc5 {[%emt 0:02:40]} 20. Rd4 {[%emt 0:03:37]} Rfd8 {[%emt 0:02:43]} 21. Rad1 {[%emt 0:02:54]} Rxd4 {[%emt 0:00:31]} 22. Rxd4 {[%emt 0:00:58]} Ke7 {[%emt 0:00:38]} 23. b4 {[%emt 0:03:00]} Na6 {[%emt 0:10:09]} 24. a3 {[%emt 0:05:19]} Rc8 {[%emt 0:00:23]} 25. f4 {[%emt 0:03:40]} Nb8 {[%emt 0:05:50]} 26. c5 {[%emt 0:05:34]} bxc5 {[%emt 0:01:29]} 27. bxc5 {[%emt 0:01:00]} Rd8 {[%emt 0:06:30]} 28. Rd6 {[%emt 0:05:38]} Rc8 {[%emt 0:09:59]} 29. Kf1 {[%emt 0:01:42]} Rc6 {[%emt 0:00:37]} 30. Ke2 {[%emt 0:02:01]} a6 {[%emt 0:00:09]} 31. Rd3 {[%emt 0:02:22]} Nd7 {[%emt 0:00:49]} 32. Rc3 {[%emt 0:00:55]} g6 {[%emt 0:01:34]} 33. h3 {[%emt 0:06:10]} e5 {[%emt 0:00:51]} 34. fxe5 {[%emt 0:01:16]} fxe5 {[%emt 0:00:24]} 35. a4 {[%emt 0:05:24]} Ke6 {[%emt 0:01:15]} 36. Rb3 {[%emt 0:01:31]} Rc7 {[%emt 0:06:27]} 37. Kd2 {[%emt 0:02:33]} Kd5 {[%emt 0:02:39]} 38. Rd3+ {[%emt 0:00:38]} Ke4 {[%emt 0:00:22]} 39. Rc3 {[%emt 0:00:58]} Rc6 {[%emt 0:02:15]} 40. Bf2 {[%emt 0:01:25]} Nf6 {[%emt 0:10:28]} 41. Rd3 {[%emt 0:04:50]} h5 {[%emt 0:01:27]} 42. a5 {[%emt 0:02:16]} Kf5 {[%emt 0:07:23]} 43. Bg1 {[%emt 0:06:20]} Ne4+ {[%emt 0:01:54]} 44. Ke2 {[%emt 0:00:46]} g5 {[%emt 0:00:42]} 45. Re3 {[%emt 0:02:28]} g4 {[%emt 0:01:42]} 46. h4 {[%emt 0:01:11]} Rc7 {[%emt 0:02:25]} 47. Rb3 {[%emt 0:03:06]} Nxc5 {[%emt 0:01:12]} 48. Rc3 {[%emt 0:01:06]} Ne6 {[%emt 0:00:15]} 49. Rxc7 {[%emt 0:00:35]} Nxc7 {[%emt 0:00:02]} 50. Kd3 {[%emt 0:00:37]} Ke6 {[%emt 0:03:17]} 51. Kc4 {[%emt 0:00:40]} Kd6 {[%emt 0:00:15]} 52. Ba7 {[%emt 0:05:50]} Nd5 {[%emt 0:05:46]} 53. Bc5+ {[%emt 0:01:43]} Kc6 {[%emt 0:00:56]} 54. Bf8 {[%emt 0:03:24]} Nf6 {[%emt 0:06:42]} 55. Bg7 {[%emt 0:00:25]} Nd7 {[%emt 0:00:02]} 56. Bh6 {[%emt 0:01:00]} Kd6 {[%emt 0:00:33]} 57. Bg5 {[%emt 0:00:48]} Nc5 {[%emt 0:02:30]} 58. Bd2 {[%emt 0:01:45]} Ne4 {[%emt 0:00:20]} 59. Bb4+ {[%emt 0:00:31]} Kc6 {[%emt 0:00:26]} 60. Be1 {[%emt 0:00:05]} Nd6+ {[%emt 0:00:16]} 61. Kd3 {[%emt 0:00:29]} Kd5 {[%emt 0:00:20]} 62. Bf2 {[%emt 0:00:18]} Nf5 {[%emt 0:03:01]} 63. Ke2 {[%emt 0:00:34]} Ke4 {[%emt 0:00:12]} 64. Be1 {[%emt 0:00:30]} Nd4+ {[%emt 0:00:20]} 65. Kf2 {[%emt 0:00:02]} Kd3 {[%emt 0:00:16]} 66. Bb4 {[%emt 0:00:30]} Nc2 {[%emt 0:00:35]} 67. Bc5 {[%emt 0:00:51]} e4 {[%emt 0:00:09]} 0-1

[Event "SVK-ch Open 2018"]
[Site "Banska Stiavnica"]
[Date "2018.07.10"]
[Round "4"]
[White "Mandak, Miroslav"]
[Black "Polyik, Peter"]
[Result "1/2-1/2"]
[ECO "D02"]
[WhiteElo "1989"]
[BlackElo "2311"]
[Annotator "NA"]
[PlyCount "63"]
[EventDate "2018.07.07"]
[EventType "swiss"]
[EventCountry "SVK"]
[SourceTitle "playchess.com"]
[Source "ChessBase"]
[SourceQuality "1"]
[TimeControl "40/5400+30:1800+30"]

1. d4 {[%emt 0:00:00]} d5 {[%emt 0:00:00]} 2. Nf3 {[%emt 0:00:10]} Nf6 {[%emt 0:00:00]} 3. Bf4 {[%emt 0:00:26]} c5 {[%emt 0:00:08]} 4. e3 {[%emt 0:01:33]} Nc6 {[%emt 0:00:17]} 5. c3 {[%emt 0:02:28]} Qb6 {[%emt 0:00:48]} 6. Qb3 {[%emt 0:02:18]} c4 {[%emt 0:00:54] LiveBook: 625 Games} 7. Qc2 $15 {[%emt 0:01:00]} Bf5 {[%emt 0:01:10]} 8. Qc1 {[%emt 0:00:20]} Nh5 {[%emt 0:02:50]} 9. Bg3 {[%emt 0:01:45]} f6 {[%emt 0:02:01]} 10. Nh4 {[%emt 0:02:06]} Be6 {[%emt 0:09:47]} 11. Be2 {[%emt 0:00:58]} Nxg3 {[%emt 0:00:07]} 12. hxg3 {[%emt 0:00:06]} Bf7 {[%emt 0:00:07]} 13. Nd2 {[%emt 0:09:26]} e5 {[%emt 0:16:20]} 14. Nhf3 {[%emt 0:04:27]} Qa5 {[%emt 0:16:14]} 15. O-O {[%emt 0:07:45]} b5 {[%emt 0:10:03]} 16. dxe5 {[%emt 0:07:31]} fxe5 {[%emt 0:00:53]} 17. b4 {[%emt 0:08:19]} Qb6 {[%emt 0:05:28]} 18. a4 {[%emt 0:01:41]} bxa4 {[%emt 0:08:48]} 19. Rxa4 {[%emt 0:00:59]} e4 {[%emt 0:00:11]} 20. Nd4 {[%emt 0:01:55]} Nxd4 {[%emt 0:00:44]} 21. exd4 {[%emt 0:00:16]} h5 {[%emt 0:06:04]} 22. Qa3 {[%emt 0:02:26]} Rh6 {[%emt 0:05:56]} 23. Ra1 {[%emt 0:03:29]} a6 {[%emt 0:00:04]} 24. Nf1 {[%emt 0:01:17]} Qb7 {[%emt 0:05:49]} 25. Qc1 {[%emt 0:03:00]} Rd8 {[%emt 0:02:21]} 26. Ne3 {[%emt 0:02:54]} Rf6 {[%emt 0:01:03]} 27. Ra5 {[%emt 0:03:44]} g6 {[%emt 0:02:45]} 28. Bd1 {[%emt 0:01:56]} Bh6 {[%emt 0:00:53]} 29. Ba4+ {[%emt 0:01:40]} Kf8 {[%emt 0:00:01]} 30. Qe1 {[%emt 0:04:14]} Kg7 {[%emt 0:00:19]} 31. Bd1 {[%emt 0:02:25]} Be8 {[%emt 0:01:35]} 32. Ba4 {[%emt 0:00:48]} 1/2-1/2

[Event "SVK-ch Open 2018"]
[Site "Banska Stiavnica"]
[Date "2018.07.10"]
[Round "4"]
[White "Budinsky, Martin"]
[Black "Kanakova, Natalie"]
[Result "0-1"]
[ECO "B26"]
[WhiteElo "1985"]
[BlackElo "2206"]
[Annotator "NA"]
[PlyCount "66"]
[EventDate "2018.07.07"]
[EventType "swiss"]
[EventCountry "SVK"]
[SourceTitle "playchess.com"]
[Source "ChessBase"]
[SourceQuality "1"]
[TimeControl "40/5400+30:1800+30"]

1. e4 {[%emt 0:00:00]} c5 {[%emt 0:00:00]} 2. Nc3 {[%emt 0:00:00]} Nc6 {[%emt 0:00:00]} 3. g3 {[%emt 0:00:13]} g6 {[%emt 0:00:09]} 4. Bg2 {[%emt 0:00:06]} Bg7 {[%emt 0:00:05]} 5. d3 {[%emt 0:00:28]} d6 {[%emt 0:00:16]} 6. Be3 {[%emt 0:00:11]} e5 {[%emt 0:00:48]} 7. Qd2 {[%emt 0:01:47]} Nd4 {[%emt 0:00:45]} 8. Nd5 $11 {[%emt 0:04:50] LiveBook: 14 Games} Be6 {[%emt 0:07:06]} 9. c3 {[%emt 0:08:44]} Bxd5 {[%emt 0:01:51]} 10. cxd4 {[%emt 0:01:10]} exd4 {[%emt 0:06:11]} 11. exd5 {[%emt 0:02:11]} dxe3 {[%emt 0:00:07]} 12. fxe3 {[%emt 0:00:26]} Nf6 {[%emt 0:06:22]} 13. Ne2 {[%emt 0:04:26]} O-O {[%emt 0:02:38]} 14. O-O {[%emt 0:01:19]} Ng4 {[%emt 0:00:46]} 15. h3 {[%emt 0:07:18]} Ne5 {[%emt 0:02:07]} 16. Nf4 {[%emt 0:14:27]} Qg5 {[%emt 0:03:54]} 17. Kh2 {[%emt 0:01:25]} Rae8 {[%emt 0:03:48]} 18. Rae1 {[%emt 0:04:46]} Qh6 {[%emt 0:03:57]} 19. Qe2 {[%emt 0:03:00]} Re7 {[%emt 0:08:12]} 20. a3 {[%emt 0:10:17]} Rc8 {[%emt 0:04:07]} 21. Qd1 {[%emt 0:04:42]} Rec7 {[%emt 0:02:50]} 22. d4 {[%emt 0:06:29]} Nd7 {[%emt 0:04:31]} 23. Re2 {[%emt 0:03:35]} Qg5 {[%emt 0:03:01]} 24. dxc5 {[%emt 0:01:48]} Rxc5 {[%emt 0:03:10]} 25. Nd3 {[%emt 0:01:28]} R5c7 {[%emt 0:00:56]} 26. e4 {[%emt 0:03:39]} Ne5 {[%emt 0:01:50]} 27. Nxe5 {[%emt 0:00:26]} Bxe5 {[%emt 0:00:13]} 28. Qd3 {[%emt 0:00:47]} h5 {[%emt 0:02:12]} 29. Kh1 {[%emt 0:04:57]} Bxg3 {[%emt 0:03:36]} 30. Re3 {[%emt 0:02:19]} Be5 {[%emt 0:02:32]} 31. Re2 {[%emt 0:01:03]} Rc1 {[%emt 0:02:13]} 32. Ref2 {[%emt 0:01:21]} f6 {[%emt 0:02:02]} 33. Qb5 {[%emt 0:02:09]} Qg3 {[%emt 0:01:08]} 0-1

[Event "SVK-ch Open 2018"]
[Site "Banska Stiavnica"]
[Date "2018.07.10"]
[Round "4"]
[White "Sandor, Martin"]
[Black "Bombek, Peter"]
[Result "0-1"]
[ECO "C11"]
[WhiteElo "1968"]
[BlackElo "2201"]
[Annotator "NA"]
[PlyCount "144"]
[EventDate "2018.07.07"]
[EventType "swiss"]
[EventCountry "SVK"]
[SourceTitle "playchess.com"]
[Source "ChessBase"]
[SourceQuality "1"]
[TimeControl "40/5400+30:1800+30"]

1. e4 {[%emt 0:00:00]} e6 {[%emt 0:00:00]} 2. d4 {[%emt 0:00:00]} d5 {[%emt 0:00:00]} 3. Nc3 {[%emt 0:00:00]} Nf6 {[%emt 0:00:10]} 4. e5 {[%emt 0:00:00]} Nfd7 $1 {[%emt 0:00:06] LiveBook: 8299 Games} 5. f4 {[%emt 0:00:11]} c5 {[%emt 0:00:12]} 6. Nf3 {[%emt 0:00:12]} Nc6 {[%emt 0:00:09]} 7. Be3 {[%emt 0:00:36]} Be7 {[%emt 0:00:17]} 8. Qd2 {[%emt 0:03:25]} O-O {[%emt 0:01:12]} 9. O-O-O {[%emt 0:10:29]} c4 {[%emt 0:01:21]} 10. g4 $17 {[%emt 0:00:41]} b5 {[%emt 0:00:34]} 11. Nxb5 {[%emt 0:19:06]} Rb8 {[%emt 0:04:07]} 12. Nd6 {[%emt 0:02:34]} Nb6 {[%emt 0:01:35]} 13. b3 {[%emt 0:05:20]} Bxd6 {[%emt 0:04:56]} 14. exd6 {[%emt 0:01:15]} Qxd6 {[%emt 0:01:40]} 15. c3 {[%emt 0:04:06]} cxb3 {[%emt 0:12:23]} 16. axb3 {[%emt 0:04:13]} Bd7 {[%emt 0:05:22]} 17. Bb5 {[%emt 0:01:33]} Na5 {[%emt 0:03:18]} 18. Qa2 {[%emt 0:06:20]} Bxb5 {[%emt 0:07:14]} 19. Qxa5 {[%emt 0:00:07]} Be2 {[%emt 0:01:26]} 20. Ne5 {[%emt 0:00:10]} Bxd1 {[%emt 0:00:57]} 21. Rxd1 {[%emt 0:00:54]} Nd7 {[%emt 0:04:25]} 22. Nxd7 {[%emt 0:01:51]} Qxd7 {[%emt 0:00:07]} 23. Kc2 {[%emt 0:00:50]} Rfc8 {[%emt 0:10:53]} 24. Ra1 {[%emt 0:07:15]} Rb7 {[%emt 0:02:18]} 25. Qa6 {[%emt 0:07:21]} Rbc7 {[%emt 0:03:30]} 26. Bd2 {[%emt 0:00:53]} Qe7 {[%emt 0:01:59]} 27. Qd3 {[%emt 0:02:57]} Qh4 {[%emt 0:01:56]} 28. Qg3 {[%emt 0:00:18]} Qxg3 {[%emt 0:01:42]} 29. hxg3 {[%emt 0:01:12]} h6 {[%emt 0:01:12]} 30. Ra6 {[%emt 0:02:10]} Rb8 {[%emt 0:02:01]} 31. Bc1 {[%emt 0:01:55]} Rb6 {[%emt 0:02:30]} 32. Ra1 {[%emt 0:01:30]} Rcb7 {[%emt 0:03:49]} 33. b4 {[%emt 0:02:24]} Kh7 {[%emt 0:03:56]} 34. Kd3 {[%emt 0:00:22]} Kg6 {[%emt 0:00:30]} 35. Ke3 {[%emt 0:02:06]} a6 {[%emt 0:04:53]} 36. Bd2 {[%emt 0:04:54]} Ra7 {[%emt 0:01:48]} 37. Kd3 {[%emt 0:00:41]} f5 {[%emt 0:04:34]} 38. g5 {[%emt 0:03:20]} Ra8 {[%emt 0:03:36]} 39. Be3 {[%emt 0:00:23]} hxg5 {[%emt 0:02:19]} 40. fxg5 {[%emt 0:00:22]} Rh8 {[%emt 0:00:41]} 41. Bf4 {[%emt 0:30:49]} Rh3 {[%emt 0:31:59]} 42. Ke3 {[%emt 0:02:59]} Rc6 {[%emt 0:00:29]} 43. Kd3 {[%emt 0:00:16]} Rh5 {[%emt 0:00:00]} 44. Ra5 {[%emt 0:00:00]} Rh8 {[%emt 0:00:00]} 45. Ra3 {[%emt 0:00:00]} Kh5 {[%emt 0:00:00]} 46. Ra5 {[%emt 0:00:00]} Rhc8 {[%emt 0:00:00]} 47. Ra3 {[%emt 0:00:00]} Kg4 {[%emt 0:00:00]} 48. Kd2 {[%emt 0:00:00]} g6 {[%emt 0:00:00]} 49. Kd3 {[%emt 0:00:00]} Rh8 {[%emt 0:00:00]} 50. Ra5 {[%emt 0:00:00]} Kf3 {[%emt 0:00:00]} 51. Be5 {[%emt 0:00:00]} Rhc8 {[%emt 0:00:00]} 52. Ra3 {[%emt 0:00:00]} Rc4 {[%emt 0:00:00]} 53. Bf4 {[%emt 0:00:00]} Kg4 {[%emt 0:00:00]} 54. Kd2 {[%emt 0:00:00]} R4c6 {[%emt 0:00:00]} 55. Kd3 {[%emt 0:00:00]} a5 {[%emt 0:00:00]} 56. b5 {[%emt 0:00:00]} Rb6 {[%emt 0:00:00]} 57. Rxa5 {[%emt 0:00:00]} Rc4 {[%emt 0:00:06]} 58. Kd2 {[%emt 0:00:00]} Rb7 {[%emt 0:00:30]} 59. Kd3 {[%emt 0:00:00]} Rc8 {[%emt 0:00:27]} 60. Kd2 {[%emt 0:00:00]} Rh8 {[%emt 0:00:31]} 61. Kd3 {[%emt 0:00:00]} Rh1 {[%emt 0:00:22]} 62. Ra6 {[%emt 0:00:00]} Rxb5 {[%emt 0:01:46]} 63. Rxe6 {[%emt 0:00:00]} Rb2 {[%emt 0:00:39]} 64. Rd6 {[%emt 0:00:00]} Rd1+ {[%emt 0:01:00]} 65. Ke3 {[%emt 0:00:00]} Rc2 {[%emt 0:01:34]} 66. Rxd5 {[%emt 0:00:00]} Rxc3+ {[%emt 0:00:08]} 67. Ke2 {[%emt 0:00:00]} Ra1 {[%emt 0:00:29]} 68. Kd2 {[%emt 0:10:15]} Rf3 {[%emt 0:00:16]} 69. Rb5 {[%emt 0:00:57]} Ra2+ {[%emt 0:00:50]} 70. Ke1 {[%emt 0:00:05]} Rd3 {[%emt 0:00:52]} 71. Re5 {[%emt 0:05:23]} Rxd4 {[%emt 0:00:40]} 72. Re6 {[%emt 0:00:14]} Re4+ {[%emt 0:00:19]} 0-1

[Event "SVK-ch Open 2018"]
[Site "Banska Stiavnica"]
[Date "2018.07.10"]
[Round "4"]
[White "Jencopala, Alexander"]
[Black "Balogh, Peter"]
[Result "0-1"]
[ECO "B06"]
[WhiteElo "1943"]
[BlackElo "2097"]
[Annotator "NA"]
[PlyCount "58"]
[EventDate "2018.07.07"]
[EventType "swiss"]
[EventCountry "SVK"]
[SourceTitle "playchess.com"]
[Source "ChessBase"]
[SourceQuality "1"]
[TimeControl "40/5400+30:1800+30"]

1. e4 {[%emt 0:00:00]} g6 {[%emt 0:02:56]} 2. d4 {[%emt 0:00:20]} Bg7 {[%emt 0:00:06]} 3. Nc3 {[%emt 0:01:03]} d6 {[%emt 0:00:08]} 4. Nf3 {[%emt 0:01:00]} a6 {[%emt 0:00:18]} 5. a4 {[%emt 0:00:52]} Bg4 {[%emt 0:01:05]} 6. Be2 {[%emt 0:01:59]} Nc6 {[%emt 0:01:38]} 7. Be3 {[%emt 0:01:24]} e5 {[%emt 0:03:48]} 8. d5 {[%emt 0:05:24]} Nce7 {[%emt 0:01:27]} 9. Nd2 {[%emt 0:03:03]} Bd7 {[%emt 0:01:47]} 10. O-O {[%emt 0:02:16]} f5 {[%emt 0:00:30]} 11. f3 {[%emt 0:01:37]} Nf6 {[%emt 0:00:27]} 12. b4 {[%emt 0:06:15]} f4 {[%emt 0:00:06]} 13. Bf2 {[%emt 0:00:37]} g5 {[%emt 0:00:06]} 14. b5 {[%emt 0:02:02]} h5 {[%emt 0:00:28]} 15. b6 {[%emt 0:04:15]} g4 {[%emt 0:02:08]} 16. Nc4 {[%emt 0:04:02]} Nc8 {[%emt 0:00:48]} 17. Rb1 {[%emt 0:05:35]} Nxb6 {[%emt 0:07:05]} 18. Bxb6 {[%emt 0:12:50]} cxb6 {[%emt 0:00:05]} 19. Nxd6+ {[%emt 0:00:34]} Kf8 {[%emt 0:01:05]} 20. Nc4 {[%emt 0:01:31]} Rc8 {[%emt 0:02:15]} 21. Nxe5 {[%emt 0:17:48]} Rxc3 {[%emt 0:06:14]} 22. Ng6+ {[%emt 0:01:39]} Kg8 {[%emt 0:00:58]} 23. Nxh8 {[%emt 0:00:32]} Kxh8 {[%emt 0:19:27]} 24. Bd3 {[%emt 0:12:16]} g3 {[%emt 0:05:01]} 25. Qd2 {[%emt 0:03:18]} Nxd5 {[%emt 0:02:48]} 26. Bxa6 {[%emt 0:02:05]} Ne3 {[%emt 0:07:00]} 27. Bb5 {[%emt 0:02:10]} Rxc2 {[%emt 0:02:00]} 28. Qxd7 {[%emt 0:01:10]} Rxg2+ {[%emt 0:00:15]} 29. Kh1 {[%emt 0:00:15]} Rxh2+ {[%emt 0:00:08]} 0-1